bitfinex/quotes_SOLUSD_20251202
["timestamp","ask_amount","ask_price","bid_price","bid_amount"]
[1764679378000,9.29,128.96,128.95,7.75474876]
[1764679383689,8.58,128.96,128.95,7.75474876]
[1764679384189,9.29,128.96,128.95,7.75474876]
[1764679387599,12.66227181,128.96,128.95,7.75474876]
[1764679387785,9.29,128.96,128.95,7.75474876]
[1764679388102,12.66227181,128.96,128.95,7.75474876]
[1764679389880,9.29,128.96,128.95,7.75474876]
[1764679391306,0.71,128.96,128.95,7.75474876]
[1764679391488,9.29,128.96,128.95,7.75474876]
[1764679392003,75.0,128.95,128.94,82.75535929]
[1764679392207,75.68,128.95,128.94,82.75535929]
[1764679393002,84.26,128.95,128.94,82.75535929]
[1764679395084,75.68,128.95,128.94,82.75535929]
[1764679395293,84.26,128.95,128.94,82.75535929]
[1764679398097,75.68,128.95,128.94,82.75535929]
[1764679398396,84.26,128.95,128.94,82.75535929]
[1764679407110,86.41840958,128.95,128.92,75.0]
[1764679407284,77.15840958,128.93,128.9,75.0]
[1764679407485,85.73840958,128.93,128.9,75.0]
[1764679407692,0.68,128.92,128.9,75.0]
[1764679408305,0.68,128.92,128.91,7.7568429]
[1764679410604,2.83840958,128.92,128.9,75.0]
[1764679410889,8.58,128.91,128.89,7.75827851]
[1764679411090,9.26,128.91,128.89,7.75827851]
[1764679411498,0.68,128.9,128.88,75.0]
[1764679411697,8.58,128.9,128.88,75.0]
[1764679412090,8.58,128.9,128.88,82.75904452]
[1764679412926,0.68,128.91,128.88,82.75904452]
[1764679413109,8.58,128.9,128.88,82.75904452]
[1764679413588,9.26,128.9,128.88,82.75904452]
[1764679417131,0.69,128.92,128.88,104.5153436]
[1764679417332,0.69,128.95,128.91,2.15840958]
[1764679417494,9.27,128.95,128.92,77.15840958]
[1764679417695,9.27,128.95,128.92,75.0]
[1764679418427,9.27,128.95,128.92,75.2]
[1764679418936,75.0,128.96,128.93,7.75614674]
[1764679419133,83.58,128.96,128.94,75.0]
[1764679419341,84.27,128.96,128.94,75.0]
[1764679419795,75.0,128.98,128.95,2.35840958]
[1764679420105,9.27,129.01,128.99,75.0]
[1764679420310,77.84840958,129.0,128.97,91.308864]
[1764679420512,10.73840958,128.99,128.97,75.0]
[1764679420726,10.73840958,128.99,128.95,0.2]
[1764679420727,77.15840958,128.98,128.95,91.308864]
[1764679420912,75.69,128.98,128.96,7.75434243]
[1764679421118,0.69,128.97,128.96,7.75434243]
[1764679422450,11.42840958,128.97,128.95,82.75477009]
[1764679422938,0.7,128.96,128.95,82.75477009]
[1764679423109,75.7,129.0,128.96,0.2]
[1764679423306,84.28,129.0,128.97,77.15840958]
[1764679423534,84.28,129.0,128.97,75.0]
[1764679424325,84.28,129.0,128.98,7.75314002]
[1764679426836,0.7,128.99,128.98,7.75314002]
[1764679428840,8.58,129.0,128.98,7.75314002]
[1764679429023,9.28,129.0,128.98,7.75314002]
[1764679430845,9.28,129.0,128.98,27.13599007]
[1764679431212,8.58,129.0,128.98,29.29439965]
[1764679431418,8.58,129.0,128.99,75.0]
[1764679431926,84.28,129.02,128.99,75.0]
[1764679432128,0.7,129.01,129.0,7.75193798]
[1764679438062,0.7,129.01,128.99,7.75225015]
[1764679438063,2.85840958,129.01,128.99,7.75225015]
[1764679438351,75.0,128.99,128.95,75.0]
[1764679438554,10.73840958,128.98,128.95,75.0]
[1764679438728,11.43840958,128.98,128.95,75.0]
[1764679438932,0.7,128.97,128.96,7.75403614]
[1764679440734,75.7,128.97,128.96,7.75403614]
[1764679441137,77.85840958,128.97,128.94,27.14440824]
[1764679441455,0.7,128.96,128.94,27.14440824]
[1764679444751,11.43840958,128.98,128.94,27.34440824]
[1764679445046,75.7,128.97,128.94,27.14440824]
[1764679445854,0.7,128.96,128.94,27.14440824]
[1764679453850,75.0,128.97,128.96,16.308864]
[1764679454054,75.68,128.97,128.96,16.308864]
[1764679455272,77.83840958,128.97,128.94,43.45327224]
[1764679455483,75.0,128.95,128.94,24.06440921]
[1764679455885,75.68,128.95,128.94,24.06440921]
[1764679456577,0.68,128.95,128.94,24.06440921]
[1764679463279,0.68,128.95,128.94,43.45327224]
[1764679464763,9.26,128.96,128.94,43.45327224]
[1764679466676,8.58,128.96,128.94,43.45327224]
[1764679466883,9.26,128.96,128.94,43.45327224]
[1764679468470,3.37206867,128.98,128.95,75.2]
[1764679468471,9.26,128.98,128.95,75.2]
[1764679468675,0.68,128.98,128.95,75.2]
[1764679469156,0.68,128.98,128.95,75.0]
[1764679469356,9.26,129.0,128.98,27.13599007]
[1764679469970,75.0,129.01,128.98,30.70805874]
[1764679470273,75.68,129.01,128.98,30.70805874]
[1764679470469,75.68,129.01,128.99,75.0]
[1764679471687,0.68,129.01,129.0,7.75193798]
[1764679474291,75.68,129.01,129.0,7.75193798]
[1764679475163,79.05206867,129.01,128.97,91.308864]
[1764679475367,12.66206867,129.0,128.97,91.308864]
[1764679475561,12.66206867,129.0,128.98,7.75291561]
[1764679475765,0.71,128.99,128.98,7.75291561]
[1764679477899,9.29,129.0,128.98,7.75291561]
[1764679478874,9.29,129.0,128.98,27.13576566]
[1764679479171,0.71,129.02,128.99,78.57206867]
[1764679479363,0.71,129.01,128.99,75.0]
[1764679480373,0.71,129.01,129.0,7.75193798]
[1764679484994,75.71,129.01,129.0,7.75193798]
[1764679487195,75.71,129.01,129.0,16.308864]
[1764679487412,75.71,129.01,128.99,7.75232043]
[1764679487413,87.66206867,129.01,128.99,7.75232043]
[1764679487703,0.68,129.0,128.99,7.75232043]
[1764679488283,75.0,128.99,128.98,78.208864]
[1764679488484,75.0,128.99,128.98,16.308864]
[1764679488798,84.26,128.99,128.98,16.308864]
[1764679490997,84.26,128.99,128.98,24.06200402]
[1764679493886,84.26,128.99,128.98,7.75314002]
[1764679497510,84.26,128.99,128.97,75.0]
[1764679497706,0.68,128.98,128.97,82.75364681]
[1764679498212,0.68,128.98,128.96,85.96291304]
[1764679498213,75.0,128.97,128.96,85.96291304]
[1764679498421,75.0,128.97,128.96,24.06291304]
[1764679498723,75.68,128.97,128.96,24.06291304]
[1764679501026,87.63206867,128.97,128.95,7.75493178]
[1764679501198,4.05206867,128.96,128.95,7.75493178]
[1764679501717,75.0,128.95,128.93,7.75566517]
[1764679502017,87.63206867,128.95,128.93,7.75566517]
[1764679502319,0.68,128.94,128.93,7.75566517]
[1764679505299,75.0,128.93,128.91,102.14879495]
[1764679505500,86.95206867,128.93,128.91,102.14879495]
[1764679505701,0.68,128.92,128.91,102.14879495]
[1764679506103,84.26,128.95,128.91,105.72086362]
[1764679506929,0.68,128.94,128.91,105.72086362]
[1764679508938,75.68,128.97,128.94,16.308864]
[1764679509099,9.26,128.98,128.95,75.0]
[1764679509294,0.68,128.97,128.95,75.0]
[1764679509704,8.58,128.98,128.95,78.37206867]
[1764679509933,8.58,128.98,128.95,78.57206867]
[1764679510138,9.26,128.98,128.95,78.37206867]
[1764679510737,9.26,128.98,128.95,78.57206867]
[1764679510938,9.26,128.98,128.96,27.1401985]
[1764679511233,0.68,129.01,128.98,91.308864]
[1764679511544,0.68,129.01,128.98,94.68093267]
[1764679511701,0.72,129.0,128.98,91.308864]
[1764679512228,75.72,129.0,128.98,91.308864]
[1764679512731,84.3,129.0,128.98,91.308864]
[1764679513230,84.3,129.0,128.98,99.06143098]
[1764679514329,0.72,128.99,128.98,99.06143098]
[1764679514542,83.58,129.0,128.98,99.06143098]
[1764679514830,0.72,128.99,128.98,99.06143098]
[1764679515331,0.72,128.99,128.98,24.06143098]
[1764679517612,0.72,128.99,128.93,32.11182072]
[1764679517613,75.0,128.97,128.93,50.44756082]
[1764679517817,11.95206867,128.96,128.93,50.44756082]
[1764679518017,12.67206867,128.96,128.93,66.75642482]
[1764679518224,0.72,128.95,128.93,43.45454902]
[1764679518910,75.72,128.95,128.93,43.45454902]
[1764679519529,75.72,128.95,128.93,24.06446441]
[1764679521024,8.58,128.96,128.93,43.45483127]
[1764679521332,9.3,128.96,128.93,43.45483127]
[1764679521743,0.72,128.95,128.93,43.45483127]
[1764679522033,79.09206867,128.95,128.93,43.45483127]
[1764679523139,75.72,128.95,128.93,43.45483127]
[1764679523638,75.72,128.95,128.93,105.35483127]
[1764679525842,0.72,128.95,128.93,105.35483127]
[1764679526037,8.58,128.96,128.94,75.2]
[1764679526342,75.72,128.97,128.94,75.2]
[1764679527340,75.72,128.97,128.94,78.57206867]
[1764679527943,75.72,128.97,128.95,7.75494377]
[1764679528143,0.72,128.96,128.95,7.75494377]
[1764679529550,0.72,128.96,128.95,7.67328864]
[1764679530952,75.0,128.95,128.94,61.9]
[1764679531449,75.72,128.95,128.94,61.9]
[1764679533352,75.72,128.95,128.94,69.65554521]
[1764679535545,75.72,128.95,128.94,7.75554521]
[1764679539954,75.72,128.95,128.93,24.06477396]
[1764679540137,0.66,128.94,128.93,24.06477396]
[1764679542853,75.67,128.95,128.93,24.06477396]
[1764679544079,0.67,128.94,128.93,24.06477396]
[1764679548168,75.0,128.95,128.93,24.06477396]
[1764679548463,75.67,128.95,128.93,24.06477396]
[1764679548764,0.67,128.94,128.93,24.06477396]
[1764679550855,0.67,128.94,128.93,16.308864]
[1764679551581,0.67,128.94,128.92,144.6564565]
[1764679556371,85.73784102,128.93,128.91,24.06597763]
[1764679556563,2.15784102,128.92,128.91,16.308864]
[1764679556753,2.82784102,128.92,128.91,16.308864]
[1764679558972,0.67,128.92,128.91,24.06621408]
[1764679559173,85.73784102,128.93,128.91,24.06621408]
[1764679559371,84.25,128.93,128.91,24.06621408]
[1764679559677,83.58,128.93,128.91,24.06621408]
[1764679559863,83.58,128.93,128.91,43.4595893]
[1764679560062,84.25,128.93,128.91,43.4595893]
[1764679562983,75.67,128.96,128.93,75.0]
[1764679563277,0.67,128.95,128.93,75.0]
[1764679563483,75.0,128.94,128.93,75.0]
[1764679563983,75.67,128.94,128.93,75.0]
[1764679564956,75.67,128.94,128.93,82.75614674]
[1764679566086,8.58,128.95,128.93,82.75614674]
[1764679566284,0.67,128.94,128.93,82.75614674]
[1764679569285,75.67,128.94,128.93,82.75614674]
[1764679569491,75.67,128.94,128.92,7.75645456]
[1764679569690,0.67,128.93,128.92,7.75645456]
[1764679570058,0.67,128.93,128.91,160.96596936]
[1764679573302,75.0,128.94,128.91,163.32381038]
[1764679573465,9.24,128.95,128.92,2.35784102]
[1764679573790,9.24,128.95,128.92,2.15784102]
[1764679574263,9.24,128.95,128.93,7.75614674]
[1764679574780,8.58,128.95,128.93,7.75614674]
[1764679574980,9.24,128.95,128.93,7.75614674]
[1764679577190,8.58,128.95,128.93,102.1465136]
[1764679577486,9.24,128.95,128.93,102.1465136]
[1764679577693,8.58,128.95,128.93,7.75614674]
[1764679577986,0.66,128.94,128.93,7.75614674]
[1764679580791,9.24,128.95,128.93,7.75614674]
[1764679581189,9.24,128.95,128.93,82.75614674]
[1764679581489,9.24,128.95,128.93,102.1465136]
[1764679582203,75.0,128.96,128.93,104.30435462]
[1764679582509,75.66,128.96,128.93,104.50435462]
[1764679582968,75.0,128.96,128.93,164.0465136]
[1764679583168,0.66,128.95,128.93,164.0465136]
[1764679585080,0.66,128.95,128.93,102.1465136]
[1764679585386,75.66,128.96,128.93,102.1465136]
[1764679586394,75.66,128.96,128.93,104.30435462]
[1764679586694,75.66,128.96,128.93,104.50435462]
[1764679586908,23.30730684,129.0,128.99,91.308864]
[1764679587209,75.0,129.02,128.99,93.46670502]
[1764679587374,75.66,129.02,128.99,93.66670502]
[1764679587775,75.0,129.02,129.0,2.15784102]
[1764679587982,75.0,129.02,128.99,93.66670502]
[1764679588187,75.66,129.02,128.99,93.66670502]
[1764679588501,75.66,129.02,129.0,2.15784102]
[1764679589002,75.66,129.02,129.01,7.7513371]
[1764679589172,75.0,129.0,128.99,99.06126572]
[1764679589572,75.0,129.0,128.98,2.15784102]
[1764679589573,75.66,129.0,128.98,7.75297899]
[1764679589876,0.66,128.99,128.98,7.75297899]
[1764679590075,75.66,129.0,128.98,9.91082001]
[1764679590396,75.66,129.0,128.98,11.12233332]
[1764679592603,83.58,129.02,128.98,30.50518337]
[1764679592888,0.68,129.01,128.98,30.50518337]
[1764679593095,0.68,129.01,128.99,3.36935433]
[1764679593298,84.26,129.02,129.0,3.36935433]
[1764679593671,0.68,129.01,128.99,78.36935433]
[1764679594292,0.68,129.01,129.0,7.75193798]
[1764679599900,0.68,129.01,129.0,11.12129231]
[1764679601601,0.68,129.01,129.0,7.75193798]
[1764679610696,75.0,129.0,128.98,7.75275379]
[1764679610896,83.56,129.0,128.98,7.75275379]
[1764679611203,0.72,128.99,128.98,7.75275379]
[1764679611781,75.0,128.97,128.93,75.0]
[1764679611982,75.0,128.95,128.93,75.0]
[1764679612402,0.72,128.94,128.93,82.75614674]
[1764679612777,12.64935433,128.94,128.92,7.75666142]
[1764679612980,75.0,128.93,128.92,7.75666142]
[1764679613184,75.72,128.93,128.92,24.06552542]
[1764679613383,75.72,128.93,128.92,7.75666142]
[1764679613580,75.72,128.93,128.91,27.1507253]
[1764679613778,75.72,128.93,128.91,43.4595893]
[1764679614808,0.72,128.92,128.91,43.4595893]
[1764679615610,0.72,128.92,128.91,24.06621408]
[1764679618508,0.72,128.92,128.91,16.308864]
[1764679618701,75.0,128.91,128.9,7.7576779]
[1764679619210,75.72,128.91,128.9,7.7576779]
[1764679623931,75.72,128.91,128.89,7.75826216]
[1764679624104,0.72,128.9,128.89,7.75826216]
[1764679624811,9.28,128.9,128.89,7.75826216]
[1764679630505,9.28,128.9,128.88,82.75906718]
[1764679630800,0.72,128.89,128.88,82.75906718]
[1764679632020,75.72,128.89,128.88,82.75906718]
[1764679632521,75.72,128.89,128.87,19.67821833]
[1764679632522,75.72,128.89,128.87,16.308864]
[1764679632820,0.72,128.88,128.86,7.75999059]
[1764679633326,75.0,128.87,128.85,153.208864]
[1764679633512,75.0,128.87,128.85,91.308864]
[1764679633830,0.72,128.86,128.85,91.308864]
[1764679634011,0.72,128.86,128.85,99.06971772]
[1764679635410,75.72,128.87,128.85,99.06971772]
[1764679635613,75.72,128.87,128.85,102.43907205]
[1764679637622,0.72,128.86,128.85,99.06971772]
[1764679638432,0.72,128.86,128.85,82.76085372]
[1764679639131,75.72,128.87,128.85,82.76085372]
[1764679641739,75.0,128.87,128.85,105.53261394]
[1764679642225,0.72,128.86,128.85,27.16325961]
[1764679643708,75.72,128.87,128.85,30.53261394]
[1764679644522,75.72,128.87,128.85,27.16325961]
[1764679644722,0.72,128.86,128.85,27.16325961]
[1764679645912,0.72,128.86,128.85,30.53261394]
[1764679647130,0.72,128.86,128.85,27.16325961]
[1764679651034,75.0,128.87,128.85,29.32437001]
[1764679651239,75.72,128.87,128.85,29.32437001]
[1764679651939,75.0,128.87,128.85,29.32437001]
[1764679652138,0.72,128.86,128.85,29.32437001]
[1764679654429,0.72,128.86,128.85,27.16325961]
[1764679655036,0.72,128.86,128.84,69.86126283]
[1764679655416,0.72,128.86,128.84,72.02237323]
[1764679655740,0.72,128.86,128.84,91.42628505]
[1764679656150,75.0,128.85,128.84,69.86126283]
[1764679656360,75.0,128.85,128.84,0.2]
[1764679656514,77.8811104,128.85,128.84,0.2]
[1764679657421,85.64207275,128.85,128.84,0.2]
[1764679661168,83.48096235,128.85,128.84,0.2]
[1764679666466,92.29090727,128.85,128.84,0.2]
[1764679670466,83.48096235,128.85,128.84,0.2]
[1764679670938,85.64207275,128.85,128.84,0.2]
[1764679672966,97.56352636,128.85,128.84,0.2]
[1764679679077,101.62148259,128.85,128.84,0.2]
[1764679679452,2.1611104,128.84,128.83,0.2]
[1764679679655,11.4311104,128.84,128.83,0.2]
[1764679680753,36.54991932,128.84,128.83,0.2]
[1764679681074,69.65506261,128.84,128.83,0.2]
[1764679681480,83.80994492,128.83,128.82,0.2]
[1764679681682,86.66105532,128.83,128.82,0.2]
[1764679682781,88.66105531,128.83,128.82,0.2]
[1764679683153,96.4232225,128.83,128.82,0.2]
[1764679684370,119.76861762,128.83,128.82,0.2]
[1764679685751,117.60750722,128.83,128.82,0.2]
[1764679685957,119.76861762,128.83,128.82,0.2]
[1764679686375,117.76861763,128.83,128.82,0.2]
[1764679686568,119.76861762,128.83,128.82,0.2]
[1764679688974,100.11880892,128.81,128.8,209.76769087]
[1764679689275,110.85991932,128.81,128.8,209.76769087]
[1764679689478,113.54991931,128.81,128.8,209.76769087]
[1764679689779,139.06005877,128.81,128.8,209.76769087]
[1764679690360,136.89894837,128.81,128.8,209.76769087]
[1764679691186,144.66232077,128.81,128.8,209.76769087]
[1764679691686,146.82343117,128.81,128.8,47.66258186]
[1764679691881,10.80994491,128.8,128.79,1e-08]
[1764679692059,11.65105532,128.8,128.79,1e-08]
[1764679692458,25.4089431,128.8,128.79,1e-08]
[1764679693277,31.17291826,128.8,128.79,1e-08]
[1764679694786,33.17291825,128.8,128.79,1e-08]
[1764679695385,37.23283826,128.8,128.79,1e-08]
[1764679697990,35.23283827,128.8,128.79,1e-08]
[1764679698175,100.11880892,128.78,128.77,0.2]
[1764679698488,110.85991932,128.78,128.77,0.2]
[1764679698659,111.53991932,128.78,128.77,0.2]
[1764679698865,114.65336551,128.78,128.77,0.2]
[1764679700084,122.41854643,128.78,128.77,0.2]
[1764679701196,120.25743603,128.78,128.77,0.2]
[1764679701380,122.41854643,128.78,128.77,0.2]
[1764679701586,122.40854643,128.78,128.77,0.2]
[1764679703174,94.45862711,128.78,128.77,0.2]
[1764679703500,93.50629132,128.78,128.77,0.2]
[1764679703682,91.34518092,128.78,128.77,0.2]
[1764679703867,93.50629132,128.78,128.77,0.2]
[1764679704466,91.34518092,128.78,128.77,0.2]
[1764679704685,91.34518092,128.78,128.77,0.4]
[1764679704983,83.58,128.78,128.77,0.4]
[1764679705587,83.58,128.78,128.77,0.2]
[1764679706895,85.7411104,128.78,128.77,0.2]
[1764679710094,75.0,128.78,128.77,0.2]
[1764679710388,8.58,128.79,128.77,8.16578395]
[1764679710883,8.58,128.79,128.78,0.2]
[1764679712172,8.58,128.79,128.78,7.96518092]
[1764679720292,75.0,128.82,128.8,75.0]
[1764679720601,75.0,128.82,128.81,3.38115218]
[1764679720801,83.58,128.82,128.8,3.58115218]
[1764679720997,83.58,128.82,128.81,0.2]
[1764679721705,83.58,128.82,128.8,3.38115218]
[1764679721706,83.58,128.82,128.8,3.58115218]
[1764679721907,83.58,128.82,128.81,7.9633724]
[1764679723410,75.0,128.8,128.79,24.07288684]
[1764679723710,83.58,128.8,128.79,24.27288684]
[1764679725413,83.58,128.8,128.79,7.76402284]
[1764679727415,83.58,128.8,128.79,11.34517502]
[1764679730921,75.0,128.82,128.8,75.0]
[1764679731103,75.0,128.82,128.81,3.38115218]
[1764679731294,75.0,128.82,128.81,11.34452458]
[1764679732025,8.56,128.83,128.81,30.7529556]
[1764679732325,8.56,128.83,128.82,3.58115218]
[1764679734225,8.56,128.83,128.82,11.34392193]
[1764679735506,9.22,128.83,128.82,16.308864]
[1764679735715,75.0,128.82,128.8,7.76383752]
[1764679735902,8.56,128.81,128.8,7.76383752]
[1764679738521,75.0,128.8,128.79,24.0731363]
[1764679740326,75.0,128.8,128.79,27.65428848]
[1764679741124,75.0,128.8,128.79,27.45428848]
[1764679745736,75.0,128.8,128.79,24.0731363]
[1764679750632,8.56,128.81,128.79,47.06573346]
[1764679750829,8.56,128.81,128.8,3.38115218]
[1764679751028,8.56,128.81,128.8,3.58115218]
[1764679751545,8.56,128.81,128.8,3.38115218]
[1764679752629,75.0,128.82,128.8,3.38115218]
[1764679752831,75.0,128.82,128.8,3.58115218]
[1764679753227,83.56,128.84,128.81,78.58115218]
[1764679753427,83.56,128.84,128.82,3.38115218]
[1764679753737,83.56,128.84,128.82,3.58115218]
[1764679753916,83.56,128.84,128.82,3.38115218]
[1764679754415,83.56,128.84,128.83,7.76216719]
[1764679757343,84.22,128.84,128.82,7.76246925]
[1764679757549,75.0,128.82,128.81,82.76306201]
[1764679757724,75.66,128.82,128.81,82.76306201]
[1764679758238,75.0,128.82,128.81,82.76306201]
[1764679759031,75.0,128.82,128.81,86.14421419]
[1764679761421,84.22,128.84,128.81,86.14421419]
[1764679761624,84.22,128.84,128.82,3.38115218]
[1764679762749,0.66,128.83,128.82,3.38115218]
[1764679763657,0.66,128.83,128.81,86.14421419]
[1764679764146,0.66,128.83,128.81,148.04421419]
[1764679767350,75.0,128.82,128.81,144.66306201]
[1764679768249,75.66,128.82,128.81,69.66306201]
[1764679768766,84.22,128.82,128.81,69.66306201]
[1764679770046,84.22,128.82,128.81,7.76306201]
[1764679776069,83.56,128.84,128.81,2.36270061]
[1764679776367,84.23,128.84,128.82,2.16270061]
[1764679777055,83.56,128.84,128.83,2.16270061]
[1764679777776,75.0,128.86,128.83,2.36270061]
[1764679778064,84.23,128.88,128.85,9.92366296]
[1764679778274,84.23,128.88,128.86,2.16270061]
[1764679778446,0.67,128.87,128.85,9.92366296]
[1764679778655,75.0,128.84,128.82,93.47156461]
[1764679779158,75.67,128.84,128.83,7.76196119]
[1764679779359,84.23,128.84,128.83,7.76196119]
[1764679779954,84.23,128.84,128.82,99.0713383]
[1764679780153,0.67,128.83,128.82,99.0713383]
[1764679780355,83.56,128.84,128.82,99.0713383]
[1764679780667,75.0,128.82,128.81,7.76310372]
[1764679780849,75.67,128.82,128.81,7.76310372]
[1764679783565,84.23,128.82,128.81,7.76310372]
[1764679785770,83.56,128.82,128.81,7.76310372]
[1764679785969,84.22,128.82,128.81,7.76310372]
[1764679789566,84.22,128.82,128.8,7.76379307]
[1764679789766,0.66,128.81,128.8,7.76379307]
[1764679790153,0.66,128.81,128.8,9.92649368]
[1764679790958,0.66,128.81,128.8,7.76379307]
[1764679793673,75.0,128.8,128.78,16.308864]
[1764679793850,83.56,128.8,128.78,16.308864]
[1764679794047,0.66,128.79,128.77,2.36270061]
[1764679794482,84.22,128.8,128.78,2.16270061]
[1764679795985,84.22,128.8,128.79,7.76457799]
[1764679798866,83.56,128.8,128.79,7.76457799]
[1764679799185,84.22,128.8,128.79,7.76457799]
[1764679801605,84.22,128.8,128.77,2.36270061]
[1764679801775,0.66,128.79,128.77,7.96545121]
[1764679802572,83.56,128.8,128.78,2.36270061]
[1764679802573,75.0,128.8,128.78,2.36270061]
[1764679802778,75.0,128.81,128.79,93.47156461]
[1764679803077,75.0,128.83,128.81,75.0]
[1764679803401,75.0,128.83,128.82,2.16270061]
[1764679803585,75.0,128.83,128.82,9.92547036]
[1764679805102,9.22,128.84,128.82,9.92547036]
[1764679805400,9.22,128.86,128.83,77.16270061]
[1764679805605,9.22,128.86,128.84,2.16270061]
[1764679806690,9.22,128.86,128.85,9.92366296]
[1764679807102,9.22,128.86,128.85,7.76096235]
[1764679813046,75.0,128.85,128.84,7.76147499]
[1764679813339,75.72,128.85,128.83,88.13342872]
[1764679813495,0.72,128.84,128.83,88.13342872]
[1764679813925,75.0,128.85,128.83,88.13342872]
[1764679814108,75.0,128.85,128.84,2.16270061]
[1764679814323,0.72,128.88,128.85,7.76096235]
[1764679814652,0.72,128.88,128.87,2.16270061]
[1764679814653,9.28,128.88,128.87,2.16270061]
[1764679815858,8.56,128.88,128.87,2.16270061]
[1764679816216,9.28,128.9,128.87,2.16270061]
[1764679816531,9.28,128.9,128.89,9.92125441]
[1764679816735,9.28,128.9,128.89,7.7585538]
[1764679818057,75.0,128.89,128.86,18.47156461]
[1764679818237,75.0,128.89,128.86,24.06893478]
[1764679818238,75.72,128.89,128.86,24.06893478]
[1764679818442,0.72,128.88,128.86,26.23163539]
[1764679818642,75.0,128.89,128.87,2.16270061]
[1764679818940,0.72,128.88,128.87,2.16270061]
[1764679819444,75.0,128.89,128.87,2.16270061]
[1764679819644,8.56,128.9,128.88,2.16270061]
[1764679819833,9.28,128.9,128.89,2.16270061]
[1764679820630,9.28,128.9,128.89,9.92125441]
[1764679820824,0.1,128.92,128.89,9.92125441]
[1764679820825,0.82,128.92,128.89,104.31763892]
[1764679821048,0.82,128.92,128.91,2.16270061]
[1764679823152,0.82,128.92,128.9,9.92065251]
[1764679823455,75.0,128.91,128.9,9.92065251]
[1764679824158,0.82,128.92,128.9,9.92065251]
[1764679824342,0.82,128.92,128.91,2.16270061]
[1764679824539,0.1,128.92,128.91,2.16270061]
[1764679824858,0.1,128.92,128.91,77.36270061]
[1764679825247,0.1,128.92,128.91,85.12005069]
[1764679826144,0.1,128.92,128.91,147.02005069]
[1764679829940,0.1,128.92,128.91,144.85735008]
[1764679831157,0.1,128.94,128.93,91.308864]
[1764679831356,0.1,128.94,128.93,155.37156461]
[1764679831551,0.82,128.94,128.93,153.208864]
[1764679833039,0.82,128.94,128.93,160.96501074]
[1764679834979,4.19268226,128.94,128.91,75.0]
[1764679835272,75.0,128.9,128.89,7.7585538]
[1764679835781,75.72,128.9,128.89,24.0674178]
[1764679836467,75.0,128.9,128.89,27.44010006]
[1764679836675,75.72,128.92,128.89,46.83648457]
[1764679837262,75.0,128.92,128.89,46.83648457]
[1764679837447,0.72,128.91,128.89,46.83648457]
[1764679838352,75.0,128.92,128.9,3.37268226]
[1764679838569,75.0,128.92,128.91,3.37268226]
[1764679839161,75.72,128.92,128.91,11.13003234]
[1764679840078,75.0,128.92,128.91,11.13003234]
[1764679840458,75.72,128.92,128.91,11.13003234]
[1764679842360,75.72,128.92,128.9,11.13063416]
[1764679842569,0.66,128.91,128.9,7.7579519]
[1764679844390,0.66,128.91,128.9,69.6579519]
[1764679848176,0.66,128.91,128.9,73.03063416]
[1764679848377,75.66,128.92,128.9,73.03063416]
[1764679849714,0.66,128.91,128.9,73.03063416]
[1764679851501,0.1,128.94,128.92,91.308864]
[1764679851806,0.1,128.94,128.93,3.37268226]
[1764679852190,0.76,128.94,128.93,3.37268226]
[1764679853490,0.76,128.94,128.93,11.128829]